bitfinex/quotes_ETHUSD_20250424
["timestamp","ask_amount","ask_price","bid_price","bid_amount"]
[1745466456630,6.4580346,1776.0,1775.6,13.14021933]
[1745466456791,0.8273,1776.0,1775.6,13.14017413]
[1745466456991,6.45798537,1776.0,1775.6,13.14017413]
[1745466457506,5.63068537,1776.0,1775.6,13.14017413]
[1745466457902,5.63068537,1776.0,1775.6,13.14008686]
[1745466458919,5.63068537,1776.0,1775.6,18.77173302]
[1745466459120,5.63068537,1776.0,1775.6,7.5083311]
[1745466459121,5.63113657,1775.9,1775.6,7.5083311]
[1745466459320,5.586,1775.8,1775.6,7.5083311]
[1745466459733,5.586,1775.8,1775.6,13.14019804]
[1745466460359,5.586,1775.8,1775.6,13.14001251]
[1745466460859,5.586,1775.8,1775.7,8.63158191]
[1745466461417,5.586,1775.8,1775.7,9.46448191]
[1745466461737,5.409,1776.2,1776.1,5.63025707]
[1745466461937,5.409,1776.2,1776.1,13.13858817]
[1745466464163,5.409,1776.2,1776.1,7.5083311]
[1745466464469,5.409,1776.2,1776.1,13.1386447]
[1745466464765,5.409,1776.2,1776.1,7.5083311]
[1745466464965,5.409,1776.2,1776.1,3.0]
[1745466465167,5.409,1776.2,1776.1,8.6303136]
[1745466466520,5.409,1776.2,1776.1,3.0]
[1745466466921,5.409,1776.2,1776.1,8.6303136]
[1745466471166,5.409,1776.2,1776.1,3.0]
[1745466471376,5.409,1776.2,1776.1,8.6303136]
[1745466474162,5.409,1776.2,1776.1,3.0]
[1745466477267,5.409,1776.2,1776.1,6.9632376]
[1745466477566,5.409,1776.2,1776.1,12.5935512]
[1745466477783,5.409,1776.2,1775.5,0.8211]
[1745466477784,0.8144,1776.1,1775.5,0.8211]
[1745466477934,5.63097857,1775.9,1775.5,10.41636141]
[1745466478134,5.63114536,1775.9,1775.6,3.0]
[1745466478384,5.63147991,1775.8,1775.5,4.7843376]
[1745466478677,5.63080933,1776.0,1775.6,8.63181473]
[1745466478849,5.6306456,1776.0,1775.8,3.0]
[1745466480480,5.63063063,1776.0,1775.8,3.0]
[1745466481533,0.8144,1776.1,1775.8,3.0]
[1745466481738,5.409,1776.2,1775.9,3.0]
[1745466481939,11.03916047,1776.2,1775.9,3.0]
[1745466482458,5.63042142,1776.1,1775.9,3.0]
[1745466482967,5.63042142,1776.1,1774.4,0.8304]
[1745466482968,5.63455319,1774.8,1774.4,0.8304]
[1745466483170,5.63380281,1775.0,1774.4,0.8304]
[1745466483467,5.63520284,1774.6,1774.1,12.49136414]
[1745466483634,5.63488925,1774.7,1774.1,18.1278893]
[1745466483839,5.409,1774.9,1774.4,4.51699341]
[1745466484036,5.409,1774.9,1774.4,10.15248746]
[1745466484358,5.6346596,1774.8,1774.5,0.8304]
[1745466484558,5.63480174,1774.7,1774.5,1.36513934]
[1745466484758,5.63480174,1774.7,1774.5,4.36513934]
[1745466485467,5.6346845,1774.8,1774.5,4.36513934]
[1745466485848,5.6348486,1774.7,1774.5,4.36513934]
[1745466486465,5.6346089,1774.8,1774.5,4.36513934]
[1745466487170,5.63475516,1774.7,1774.5,3.0]
[1745466487367,5.63539025,1774.5,1774.4,7.14397073]
[1745466487576,5.63539025,1774.5,1774.4,10.14397073]
[1745466488165,5.63539025,1774.5,1774.4,7.14397073]
[1745466488352,5.63616351,1774.3,1774.0,0.8304]
[1745466488560,5.6364276,1774.2,1774.0,0.8304]
[1745466488760,5.63622404,1774.3,1774.0,0.8304]
[1745466488958,5.41,1774.5,1773.4,6.46914564]
[1745466488959,6.4108741,1774.2,1773.4,6.46914564]
[1745466489271,5.63742171,1773.9,1773.4,5.34739341]
[1745466489478,5.63742171,1773.9,1773.5,8.6385584]
[1745466489640,5.63742171,1773.9,1773.7,3.0]
[1745466489847,5.411,1774.1,1773.6,10.15522813]
[1745466490044,5.411,1774.1,1773.9,3.0]
[1745466490247,11.82134678,1774.4,1774.1,3.0]
[1745466490658,5.63605327,1774.3,1774.1,3.0]
[1745466491583,5.63658967,1774.2,1773.8,0.8304]
[1745466491760,5.63713542,1774.0,1773.8,0.8304]
[1745466491946,6.41055848,1774.3,1773.8,0.8304]
[1745466492280,5.63702996,1774.0,1773.6,5.34739341]
[1745466492448,0.7745,1774.3,1773.6,5.88213275]
[1745466492650,5.63726738,1774.0,1773.7,3.0]
[1745466492860,11.06626738,1774.0,1773.7,3.0]
[1745466493260,11.06603482,1774.0,1773.7,3.0]
[1745466493454,5.429,1774.0,1773.7,3.0]
[1745466494057,5.6381865,1773.7,1773.2,10.98678538]
[1745466494263,11.27569802,1773.8,1773.4,3.0]
[1745466494580,5.63813775,1773.7,1773.3,8.63917204]
[1745466494768,5.63786775,1773.8,1773.3,14.27812878]
[1745466494971,5.63786775,1773.8,1773.3,8.63895674]
[1745466495167,5.63786775,1773.8,1773.4,5.63886003]
[1745466496687,5.63786775,1773.8,1773.4,5.63882266]
[1745466497253,5.63786775,1773.8,1773.3,8.63901283]
[1745466497690,5.63809398,1773.7,1773.3,3.0]
[1745466497887,5.431,1773.6,1773.3,3.0]
[1745466498300,11.0693202,1773.6,1773.2,5.34739341]
[1745466498484,11.06936448,1773.6,1773.1,5.6395938]
[1745466498684,11.06936448,1773.6,1773.2,5.63939696]
[1745466498900,5.431,1773.6,1773.4,4.51699341]
[1745466499179,5.431,1773.6,1773.5,5.6385678]
[1745466499964,5.431,1773.7,1773.5,11.2771356]
[1745466500258,5.431,1773.7,1773.6,5.63824988]
[1745466501287,3.0,1774.2,1773.6,5.63824988]
[1745466501288,5.431,1774.3,1773.8,6.4353993]
[1745466501489,0.7767,1774.6,1774.2,4.51699341]
[1745466501690,24.009,1774.7,1774.5,5.63527262]
[1745466501988,18.578,1774.7,1774.5,5.63522769]
[1745466502287,5.431,1774.7,1774.6,10.1520661]
[1745466502695,0.7767,1775.0,1774.6,10.1520661]
[1745466502696,5.431,1774.9,1774.8,5.6341823]
[1745466502902,5.431,1774.9,1774.6,10.95001675]
[1745466503193,5.431,1774.9,1774.7,5.63459353]
[1745466503399,5.431,1774.9,1774.8,5.63443768]
[1745466503589,5.431,1774.9,1774.8,10.15143109]
[1745466504101,5.431,1774.9,1774.8,4.51699341]
[1745466504457,5.431,1774.9,1774.7,0.56382499]
[1745466504685,5.431,1774.9,1774.7,5.63467733]
[1745466506500,5.63350893,1775.1,1772.2,5.64256098]
[1745466506501,5.64049909,1772.9,1772.2,5.64256098]
[1745466506708,5.43,1772.9,1772.3,0.5642561]
[1745466507002,5.43,1772.9,1772.0,5.31509341]
[1745466507218,5.64189521,1772.5,1772.0,5.31509341]
[1745466507371,5.64080419,1772.8,1772.0,0.7981]
[1745466507372,5.75245657,1772.8,1772.0,0.7981]
[1745466507697,6.99333674,1772.7,1772.0,0.7981]
[1745466508003,5.64143541,1772.6,1772.0,0.7981]
[1745466508362,1.35194566,1772.7,1772.0,3.7981]
[1745466508562,5.64159942,1772.6,1772.0,3.7981]
[1745466510192,5.64196228,1772.5,1772.0,0.7981]
[1745466510394,0.7767,1772.7,1772.0,0.7981]
[1745466510592,6.4178148,1772.7,1772.1,3.0]
[1745466510789,6.41799252,1772.7,1772.2,0.3]
[1745466511011,5.64144247,1772.6,1772.0,3.7981]
[1745466511376,6.41798691,1772.7,1772.0,9.44142303]
[1745466511576,5.64145061,1772.6,1772.0,3.7981]
[1745466511777,5.64220166,1772.4,1772.0,0.7981]
[1745466511973,6.41783063,1772.7,1771.7,0.8287]
[1745466512213,5.64358117,1772.0,1771.7,0.8287]
[1745466512577,5.64239951,1772.3,1771.7,0.8287]
[1745466512578,5.64270398,1772.2,1771.7,0.8287]
[1745466512780,5.64397173,1771.9,1771.4,0.3993249]
[1745466512984,5.64446099,1771.7,1771.4,0.3993249]
[1745466513212,5.64463285,1771.6,1771.4,0.3993249]
[1745466513891,5.64493367,1771.5,1771.4,0.3993249]
[1745466514112,11.30363285,1771.6,1771.4,0.3993249]
[1745466514113,5.659,1771.6,1771.4,0.3993249]
[1745466514279,5.659,1772.1,1771.4,0.3993249]
[1745466514619,5.64295114,1772.2,1771.7,3.0]
[1745466514817,5.64295114,1772.2,1771.7,8.64426057]
[1745466515202,5.64286068,1772.2,1771.6,9.47303357]
[1745466515404,5.64319315,1772.1,1771.6,9.47303357]
[1745466515604,29.89900467,1772.5,1771.8,4.41720674]
[1745466515795,29.89900467,1772.5,1772.1,3.0]
[1745466516123,18.597,1772.5,1772.0,0.762]
[1745466516324,0.8297,1772.8,1772.3,3.0]
[1745466516483,11.30114442,1772.7,1772.4,3.0]
[1745466516816,11.30114442,1772.7,1772.2,3.0]
[1745466516817,5.64160863,1772.6,1772.2,3.0]
[1745466517021,5.64160863,1772.6,1772.2,3.76457416]
[1745466517203,0.8297,1773.1,1772.0,0.762]
[1745466517383,5.64081858,1772.8,1772.3,5.64220139]
[1745466517583,5.64112261,1772.7,1772.3,3.0]
[1745466517926,5.66,1773.0,1772.1,3.0]
[1745466517927,5.64189533,1772.5,1772.1,3.0]
[1745466518728,5.64197932,1772.5,1772.1,3.0]
[1745466518937,5.64218881,1772.4,1772.0,0.762]
[1745466519136,5.64239061,1772.3,1772.0,0.762]
[1745466519736,5.64239061,1772.3,1772.0,3.762]
[1745466519898,5.661,1772.5,1772.0,3.762]
[1745466519899,5.661,1772.5,1772.0,9.40518329]
[1745466520099,5.661,1772.5,1772.1,8.64286148]
[1745466520311,5.661,1772.5,1772.1,8.64278057]
[1745466520508,5.661,1772.5,1772.2,5.64268741]
[1745466520830,5.661,1772.5,1772.3,3.0]
[1745466521035,5.64098295,1772.8,1772.3,8.64225435]
[1745466521253,5.661,1772.6,1772.5,3.0]
[1745466521618,5.661,1772.8,1772.6,3.0]
[1745466521939,0.8297,1773.0,1772.5,0.762]
[1745466522119,5.64122983,1772.7,1772.5,0.762]
[1745466522314,5.64162861,1772.6,1772.3,0.762]
[1745466522522,5.64170127,1772.6,1772.1,8.64299907]
[1745466522725,5.661,1772.9,1772.1,8.64299907]
[1745466522726,5.64188267,1772.5,1772.1,8.64299907]
[1745466522914,5.64188267,1772.5,1772.1,3.0]
[1745466523318,5.64188267,1772.5,1772.0,3.762]
[1745466523629,5.64252697,1772.3,1772.0,3.762]
[1745466524027,5.6427409,1772.2,1772.0,0.762]
[1745466524203,5.6427409,1772.2,1771.4,0.3993249]
[1745466524204,5.64397787,1771.8,1771.4,0.3993249]
[1745466524403,5.64385412,1771.9,1771.5,0.762]
[1745466524599,5.64385412,1771.9,1771.5,9.40688777]
[1745466524999,5.64385412,1771.9,1771.5,3.762]
[1745466525204,5.64393096,1771.9,1771.5,3.762]
[1745466525605,5.64393096,1771.9,1771.5,6.40691579]
[1745466525919,5.64413594,1771.8,1771.4,3.3993249]
[1745466526128,12.43466119,1771.9,1771.5,5.64482007]
[1745466526334,11.30593096,1771.9,1771.6,3.0]
[1745466526535,11.30593096,1771.9,1771.4,0.3993249]
[1745466526711,11.30593096,1771.9,1771.6,3.0]
[1745466526906,11.30593096,1771.9,1771.5,8.6448702]
[1745466527112,5.64417758,1771.8,1771.4,0.3993249]
[1745466527339,11.30580602,1771.9,1771.5,8.64492554]
[1745466527650,5.662,1771.9,1771.6,3.0]
[1745466528143,5.662,1771.9,1771.5,8.64487678]
[1745466528328,11.30578952,1771.9,1771.5,3.0]
[1745466528647,5.662,1771.9,1771.5,8.64475223]
[1745466528809,5.662,1771.9,1771.5,5.64475223]
[1745466529008,5.662,1771.9,1771.8,3.0]
[1745466529438,5.662,1771.9,1771.6,5.64437379]
[1745466529785,5.662,1771.9,1771.7,8.64428434]
[1745466529911,5.662,1771.9,1771.8,0.8055]
[1745466530111,5.662,1771.9,1771.8,9.44947787]
[1745466530333,5.662,1771.9,1771.8,3.8055]
[1745466530534,5.64147688,1772.6,1771.9,3.0]
[1745466530843,5.663,1772.8,1772.5,3.0]
[1745466531053,11.30379627,1772.8,1772.5,3.0]
[1745466531619,11.30379627,1772.8,1772.4,3.0]
[1745466531838,5.64119722,1772.7,1772.3,3.8055]
[1745466532134,5.64124759,1772.7,1772.3,0.8055]
[1745466532337,12.9983099,1772.8,1772.5,3.0]
[1745466532338,5.663,1772.8,1772.5,3.0]
[1745466532538,5.663,1772.9,1772.5,8.6415348]
[1745466532843,11.30353029,1772.9,1772.5,8.6415348]
[1745466533045,5.663,1772.9,1772.5,8.6415348]
[1745466533437,11.30350239,1772.9,1772.5,8.6415348]
[1745466533667,5.64100948,1772.8,1772.4,3.0]
[1745466533970,5.64121615,1772.7,1772.3,3.8055]
[1745466534870,5.64100948,1772.8,1772.3,9.44770515]
[1745466535175,5.64125216,1772.7,1772.3,9.44770515]
[1745466535771,5.64101358,1772.8,1772.4,3.0]
[1745466536272,5.64101358,1772.8,1772.3,0.8055]
[1745466536474,5.64101358,1772.8,1696.0,0.005]
[1745466536475,5.64225603,1772.4,1771.7,0.8185]
[1745466536766,5.642394,1772.3,1772.0,3.0]
[1745466537186,5.642394,1772.3,1771.9,3.0]
[1745466537475,5.642394,1772.3,1771.9,8.64360092]
[1745466537685,5.642394,1772.3,1771.9,5.64360092]
[1745466537856,11.30227919,1772.4,1772.0,5.64331714]
[1745466538052,5.66,1772.4,1772.1,3.0]
[1745466538272,12.43242868,1772.4,1772.1,3.0]
[1745466538498,5.64258591,1772.3,1771.9,3.0]
[1745466538772,5.64258919,1772.3,1771.9,3.0]
[1745466538969,5.64258919,1772.3,1771.9,8.64365075]
[1745466539155,5.6429055,1772.2,1771.7,3.8185]
[1745466539354,1.88364393,1772.2,1771.7,0.8185]
[1745466539553,5.64346364,1772.0,1771.7,0.8185]
[1745466539783,5.64346364,1772.0,1771.7,3.8185]
[1745466540369,5.64336835,1772.0,1771.7,0.8185]
[1745466540948,5.64336835,1772.0,1771.7,3.8185]
[1745466541349,5.64336835,1772.0,1771.7,3.0]
[1745466541543,6.77200757,1772.0,1771.7,3.0]
[1745466541788,6.77200757,1772.0,1771.5,10.99052512]
[1745466541789,1.89118948,1772.4,1772.0,3.0]
[1745466542076,5.66,1772.4,1772.2,3.0]
[1745466543081,5.64245332,1772.3,1772.0,3.0]
[1745466543665,5.64238663,1772.3,1772.0,3.0]
[1745466543852,11.30230221,1772.4,1772.0,8.64325117]
[1745466544057,5.66,1772.4,1772.2,3.0]
[1745466544745,5.66,1772.4,1772.2,8.64252518]
[1745466544940,6.40229768,1772.7,1772.2,14.28501374]
[1745466545146,5.661,1772.6,1772.4,8.64186885]
[1745466546081,5.661,1772.6,1772.4,3.0]
[1745466548851,5.661,1772.6,1772.4,8.64199105]
[1745466549052,5.661,1772.6,1772.4,3.0]
[1745466550753,11.30268195,1772.6,1772.4,3.0]
[1745466551247,12.99706413,1772.6,1772.4,3.0]
[1745466551454,5.64177469,1772.5,1772.2,3.0]
[1745466552092,0.761,1772.5,1771.8,5.34576641]
[1745466552388,6.40279812,1772.5,1772.1,3.0]
[1745466552558,1.96737981,1772.5,1772.1,3.0]
[1745466552747,5.64333392,1772.1,1771.5,0.8083]
[1745466552947,6.421,1772.4,1771.8,5.64385968]
[1745466552948,6.40321251,1772.4,1771.8,5.64385968]
[1745466553148,0.761,1772.8,1772.2,5.6426136]
[1745466553351,5.64143066,1772.6,1772.0,8.64313212]
[1745466553584,11.30128334,1772.7,1771.9,5.34576641]
[1745466553585,5.66,1772.5,1772.3,3.0]
[1745466553793,5.66,1772.5,1772.3,8.64237286]
[1745466553987,0.52205493,1772.7,1772.3,13.17961917]
[1745466554198,29.90163731,1773.2,1772.7,8.64087242]
[1745466554362,24.262,1773.2,1772.9,3.0]
[1745466554561,29.90161546,1773.2,1772.9,3.0]
[1745466555249,24.262,1773.2,1772.9,3.0]
[1745466555454,29.90153428,1773.2,1772.9,3.0]
[1745466556006,24.262,1773.2,1772.7,8.34576641]
[1745466556204,5.64015425,1773.1,1772.7,8.34576641]
[1745466556565,32.11811775,1773.2,1772.7,13.98678615]
[1745466556766,5.63984061,1773.1,1772.8,3.0]
[1745466556966,29.90169247,1773.2,1772.9,3.0]
[1745466557187,29.90169247,1773.2,1772.8,3.0]
[1745466557588,29.90169247,1773.2,1772.8,8.64077139]
[1745466557902,24.262,1773.2,1772.8,8.6407589]
[1745466558900,29.90170015,1773.2,1772.8,3.0]
[1745466559101,5.63987852,1773.1,1772.8,3.0]
[1745466559283,32.9679888,1773.2,1772.8,3.0]
[1745466560299,32.9679888,1773.2,1772.8,8.64059054]
[1745466560300,32.96779497,1773.2,1772.8,8.64059054]
[1745466561062,27.32827001,1773.2,1772.8,8.64059054]
[1745466561703,32.96793353,1773.2,1772.8,8.64059054]
[1745466561862,29.90166352,1773.2,1772.8,8.64059054]
[1745466562064,24.262,1773.2,1772.8,3.0]
[1745466562490,29.9017135,1773.2,1772.8,8.64067964]
[1745466562702,5.63874358,1773.5,1772.8,3.0]
[1745466562902,5.63874358,1773.5,1772.4,5.64196591]
[1745466562903,5.63844862,1773.6,1773.2,8.63939006]
[1745466563060,6.28524803,1773.6,1773.2,8.63938586]
[1745466563763,0.64679941,1773.6,1773.3,5.63916335]
[1745466564286,5.63830502,1773.6,1773.2,8.63938586]
[1745466564464,12.12667892,1773.7,1773.2,8.63938586]
[1745466564465,6.4886,1773.7,1773.2,3.0]
[1745466564866,5.63851849,1773.6,1773.2,8.63937795]
[1745466565298,6.4886,1773.7,1773.3,5.63909799]
[1745466565466,6.4886,1773.7,1773.4,5.63887745]
[1745466565798,5.659,1773.7,1773.4,5.63887745]
[1745466566204,6.15917228,1773.8,1773.2,3.0]
[1745466566205,5.659,1773.8,1773.6,5.63821104]
[1745466566408,24.265,1774.0,1773.7,8.63785724]
[1745466566699,24.265,1774.0,1773.6,3.0]
[1745466566877,24.265,1774.0,1773.6,8.63813991]
[1745466567074,24.098,1774.0,1773.8,5.6374973]
[1745466567288,24.098,1774.0,1773.9,3.0]
[1745466567505,0.8296,1774.3,1774.0,5.6369222]
[1745466567667,5.492,1774.3,1773.9,5.30976641]
[1745466567861,6.46506985,1774.5,1774.1,3.0]
[1745466568070,5.492,1774.4,1774.1,8.63657646]
[1745466568604,5.63602783,1774.3,1774.1,3.0]
[1745466569089,11.12799249,1774.4,1774.1,3.0]
[1745466569289,5.492,1774.4,1774.1,3.0]
[1745466569493,11.12782296,1774.4,1774.1,3.0]
[1745466570006,5.492,1774.4,1774.1,3.0]
[1745466570471,11.12792273,1774.4,1774.1,3.0]
[1745466570675,0.8296,1774.5,1774.1,13.47390652]
[1745466570867,5.491,1774.5,1774.3,3.0]
[1745466571833,11.12627166,1774.6,1774.3,3.0]
[1745466572828,5.63559223,1774.5,1774.3,3.0]
[1745466573008,5.63596665,1774.4,1774.0,3.0]
[1745466573334,5.63596665,1774.4,1774.0,8.63695754]
[1745466573527,5.63555114,1774.5,1774.0,8.63695754]
[1745466573733,5.63555114,1774.5,1774.2,3.0]
[1745466574029,11.12628283,1774.6,1774.2,8.63631168]
[1745466574536,16.76164793,1774.6,1774.2,3.0]
[1745466574738,5.491,1774.6,1774.2,3.0]
[1745466574933,11.12628515,1774.6,1774.2,3.0]
[1745466575141,5.63555893,1774.5,1774.2,3.0]
[1745466575435,5.63598193,1774.4,1774.0,3.0]
[1745466575731,5.63606292,1774.3,1774.0,3.0]
[1745466575920,5.63598193,1774.4,1774.0,3.0]
[1745466576231,5.63598193,1774.4,1774.0,8.63686591]
[1745466577130,5.63792051,1773.8,1773.3,5.63903705]
[1745466577340,6.3206,1773.8,1773.2,0.8209]
[1745466577626,5.63888904,1773.4,1773.2,0.8209]
[1745466577791,5.63888904,1773.4,1773.2,3.8209]
[1745466577993,5.63810969,1773.7,1773.2,3.8209]
[1745466578192,5.63842459,1773.6,1773.2,9.46038149]
[1745466578418,5.63859113,1773.5,1773.2,3.8209]
[1745466578628,5.63860773,1773.5,1773.2,0.8209]
[1745466578817,5.63914312,1773.4,1773.2,0.8209]
[1745466579005,5.63872667,1773.5,1773.2,3.8209]
[1745466579446,5.63889449,1773.4,1773.2,3.0]
[1745466579638,5.63889449,1773.4,1773.1,3.0]
[1745466579825,5.63873856,1773.5,1773.0,6.46082322]
[1745466580005,11.27757829,1773.5,1773.2,3.0]
[1745466580212,5.63873856,1773.5,1773.1,3.0]
[1745466581039,5.63891331,1773.4,1773.1,3.0]
[1745466581751,6.46968585,1773.4,1773.0,3.0]
[1745466581923,5.63931398,1773.3,1773.0,3.0]
[1745466582122,6.46968585,1773.4,1772.8,3.8209]
[1745466582123,5.63983982,1773.1,1772.8,3.8209]
[1745466582454,5.63937303,1773.3,1772.8,3.8209]
[1745466582613,5.63937303,1773.3,1772.8,9.46156568]
[1745466582815,5.63963037,1773.2,1772.8,9.46156568]
[1745466583651,5.49,1773.4,1773.2,3.0]
[1745466584361,11.1288942,1773.4,1773.2,3.0]
[1745466584519,5.63920374,1773.3,1773.2,3.0]
[1745466584720,5.63986068,1773.1,1772.9,4.53746641]
[1745466584915,0.8306,1773.1,1772.5,4.53746641]
[1745466585127,5.64089831,1772.8,1772.3,11.00059361]
[1745466585353,5.64089831,1772.8,1772.4,5.64205896]
[1745466585657,5.64122888,1772.7,1772.3,11.00072143]
[1745466585817,0.8306,1772.6,1772.3,10.17982143]
[1745466586223,0.8306,1772.6,1772.4,3.0]
[1745466587066,6.47229598,1772.8,1772.4,8.64205355]
[1745466588464,2.04257835,1772.8,1772.4,3.0]
[1745466588630,2.04257835,1772.8,1772.0,0.8209]
[1745466588631,5.64159102,1772.6,1772.0,0.8209]
[1745466588829,5.64260672,1772.3,1771.9,3.0]
[1745466589061,6.47340433,1772.4,1771.7,5.30416641]
[1745466589362,5.64329406,1772.1,1771.7,0.7667]
[1745466589525,5.492,1772.1,1771.7,9.41097206]
[1745466589729,11.13518074,1772.1,1771.7,0.7667]
[1745466590365,11.13518074,1772.1,1771.7,6.4109724]
[1745466590664,5.492,1772.1,1771.8,3.0]
[1745466591871,11.13503155,1772.1,1771.8,3.0]
[1745466592031,5.492,1772.1,1771.8,3.0]
[1745466592436,5.492,1772.1,1771.8,8.64393436]
[1745466593156,5.492,1772.1,1771.8,14.28766852]
[1745466593346,5.494,1772.2,1771.8,14.28766852]
[1745466593548,5.494,1772.2,1771.9,5.64363059]
[1745466593753,5.494,1772.2,1771.8,8.64372251]
[1745466594661,5.494,1772.2,1771.8,14.28749664]
[1745466594871,6.4735231,1772.4,1771.9,4.53746641]
[1745466594872,0.8313,1772.4,1771.9,4.53746641]
[1745466595084,0.8313,1772.6,1772.1,4.53746641]
[1745466595247,5.494,1772.5,1772.2,3.0]
[1745466595435,5.494,1772.5,1772.2,8.64249332]
[1745466595636,5.494,1772.5,1772.2,3.0]
[1745466595836,6.47279223,1772.6,1772.2,3.0]
[1745466596081,5.494,1772.5,1772.1,0.7667]
[1745466596286,11.13590154,1772.5,1772.1,0.7667]
[1745466596447,5.64283296,1772.2,1771.7,5.64405529]
[1745466596643,5.64253789,1772.3,1771.8,10.18115315]
[1745466596863,5.64253789,1772.3,1771.9,5.64353624]
[1745466597072,5.64253789,1772.3,1771.9,8.64365542]
[1745466598370,5.6422651,1772.4,1772.0,5.64316109]
[1745466599584,2.04270563,1772.6,1772.2,4.53746641]
[1745466599747,5.445,1772.5,1772.2,10.18003862]
[1745466599949,5.445,1772.5,1772.2,10.18003034]
[1745466600256,5.445,1772.5,1772.3,5.64214397]
[1745466600881,5.445,1772.5,1772.3,3.0]
[1745466601284,5.9895,1772.5,1772.1,3.0]
[1745466601582,5.64209159,1772.4,1772.0,4.53746641]
[1745466601775,6.40351171,1772.4,1772.0,3.0]
[1745466602091,5.64299918,1772.2,1772.0,3.0]
[1745466602273,0.7613,1772.4,1771.7,6.47349546]
[1745466602477,5.64290534,1772.2,1771.7,6.47340818]
[1745466602677,5.446,1772.1,1771.8,8.64394546]
[1745466602996,5.64196498,1772.5,1772.1,9.47222511]
[1745466603157,5.64240107,1772.3,1772.1,3.0]
[1745466603556,5.64230522,1772.4,1772.1,3.0]
[1745466603757,11.08796502,1772.5,1772.1,3.0]
[1745466603989,5.64227569,1772.4,1772.1,3.0]
[1745466604489,11.08796502,1772.5,1772.1,3.0]
[1745466604696,5.64223709,1772.4,1772.1,3.0]
[1745466605185,11.08796502,1772.5,1772.1,3.0]
[1745466605395,5.64214068,1772.4,1772.1,3.0]
[1745466606094,5.64241693,1772.3,1772.1,3.0]
[1745466606293,5.64285916,1772.2,1772.0,3.0]
[1745466606496,6.40388909,1772.3,1772.0,3.0]
[1745466607165,0.7613,1772.3,1772.0,3.0]
[1745466607662,6.40388162,1772.3,1772.0,3.0]
[1745466608387,5.64295466,1772.2,1772.0,3.0]
[1745466608579,0.7613,1772.3,1772.0,3.0]
[1745466608794,6.2073,1772.5,1772.0,3.0]
[1745466609002,0.7613,1772.5,1772.2,3.0]
[1745466609293,11.08807905,1772.4,1772.2,3.0]
[1745466609497,5.446,1772.4,1772.2,3.0]
[1745466609883,11.08828503,1772.4,1772.2,3.0]
[1745466610192,5.446,1772.4,1772.2,3.0]
[1745466610692,12.27312408,1772.4,1771.8,0.8293]
[1745466610893,5.64276978,1772.2,1771.8,0.8293]
[1745466611097,5.64276978,1772.2,1771.9,3.0]
[1745466611598,5.64249234,1772.3,1771.9,3.0]
[1745466611794,5.64249234,1772.3,1771.9,8.64346403]
[1745466611966,5.64249234,1772.3,1771.9,3.0]
[1745466612169,5.64308861,1772.1,1771.9,3.0]
[1745466612409,5.64300578,1772.2,1771.9,3.0]
[1745466612585,11.08824305,1772.4,1771.9,3.0]
[1745466612890,5.6427158,1772.2,1771.9,3.0]
[1745466613484,0.7613,1772.5,1772.0,5.64333965]
[1745466613684,0.7613,1772.5,1772.1,13.1803129]
[1745466613685,5.446,1772.2,1772.1,13.1803129]
[1745466614279,5.446,1772.2,1772.1,7.53746641]
[1745466615388,5.446,1772.2,1772.1,3.0]
[1745466615778,11.08870398,1772.2,1772.1,3.0]
[1745466616100,5.64304096,1772.1,1771.8,3.8293]
[1745466616399,5.64303904,1772.1,1771.8,3.8293]
[1745466616599,5.446,1772.2,1771.8,3.8293]
[1745466616802,5.446,1772.2,1771.9,5.64354938]
[1745466617003,5.446,1772.2,1771.8,9.47305759]
[1745466617303,5.446,1772.2,1771.9,10.18096047]
[1745466617679,5.446,1772.2,1772.1,4.53746641]
[1745466618620,5.446,1772.2,1771.4,1.1890249]
[1745466618621,11.88064205,1772.2,1771.4,1.1890249]
[1745466618771,5.64384256,1771.9,1771.5,10.18237718]
[1745466618971,11.08997787,1771.8,1771.7,4.53746641]
[1745466619201,11.08997787,1771.8,1771.6,3.0]
[1745466619614,5.446,1771.8,1771.6,3.0]
[1745466620102,11.09016402,1771.8,1771.6,3.0]
[1745466620304,11.09018683,1771.8,1771.6,3.0]
[1745466620607,5.446,1771.8,1771.6,3.0]
[1745466620813,5.447,1771.8,1771.7,4.53746641]
[1745466621013,5.64337809,1772.0,1771.7,4.53746641]
[1745466621216,5.447,1771.9,1771.7,4.53746641]
[1745466621568,0.7919,1772.1,1771.8,5.64396156]
[1745466621787,5.447,1772.0,1771.9,4.53746641]
[1745466621987,5.64277692,1772.2,1771.9,4.53746641]
[1745466622203,5.447,1772.1,1771.9,5.64364294]
[1745466622407,5.447,1772.1,1771.8,6.43357077]
[1745466623484,5.447,1772.1,1771.8,3.7897]
[1745466623896,5.447,1772.1,1771.8,9.43357081]
[1745466624628,0.7919,1772.0,1771.4,0.3993249]
[1745466624788,6.43683367,1771.5,1771.4,0.3993249]
[1745466624995,11.88383367,1771.5,1771.4,0.3993249]
[1745466625607,5.64439986,1771.7,1771.4,0.3993249]
[1745466625924,6.24645973,1772.8,1771.4,0.3993249]
[1745466625925,5.447,1772.0,1771.6,10.18206452]
[1745466626103,11.09059834,1772.0,1771.7,0.11709992]
[1745466626304,5.64389554,1771.9,1771.5,3.7897]
[1745466626505,5.64389554,1771.9,1771.6,0.11709992]
[1745466626719,5.64402427,1771.8,1771.6,0.11709992]
[1745466626914,5.64386029,1771.9,1771.6,0.11709992]
[1745466627315,5.64409177,1771.8,1771.6,0.11709992]
[1745466627925,5.64386029,1771.9,1771.6,0.11709992]
[1745466628126,5.64401987,1771.8,1771.6,0.11709992]
[1745466628436,11.28776954,1771.9,1771.6,0.11709992]
[1745466628589,5.64429643,1771.7,1771.6,0.11709992]
[1745466628999,11.22129643,1771.7,1771.4,3.3993249]
[1745466629493,11.22129643,1771.7,1771.5,0.11709992]